fUSD/lending_fUSD_20250812
["ID","MTS","AMOUNT","RATE_DAILY","PERIOD"]
[378796994,1755019883930,-853.68,0.00041643,30]
[378796995,1755019883939,-726.02,0.00041643,30]
[378796996,1755019883949,-400.0,0.00041643,30]
[378796997,1755019883958,-790.14,0.00041643,30]
[378796998,1755019883968,-970.03,0.00041643,30]
[378796999,1755019883977,-400.0,0.00041643,30]
[378797000,1755019883987,-617.42,0.00041643,30]
[378797001,1755019883996,-460.0,0.00041643,30]
[378797002,1755019884005,-400.0,0.00041643,30]
[378797003,1755019884014,-400.0,0.00041643,30]
[378797004,1755019884024,-690.93,0.00041643,30]
[378797005,1755019884034,-400.0,0.00041643,30]
[378797006,1755019884043,-400.0,0.00041643,30]
[378797007,1755019884053,-1208.27,0.00041643,30]
[378797008,1755019884062,-408.08,0.00041643,30]
[378797009,1755019884071,-400.0,0.00041643,30]
[378797010,1755019884081,-400.0,0.00041643,30]
[378797011,1755019884090,-434.25,0.00041643,30]
[378797012,1755019884099,-400.0,0.00041643,30]
[378797013,1755019884108,-400.0,0.00041643,30]
[378797014,1755019884118,-1110.96,0.00041643,30]
[378797015,1755019884127,-151.0,0.00041643,30]
[378797016,1755019884139,-400.0,0.00041643,30]
[378797017,1755019884149,-400.0,0.00041643,30]
[378797018,1755019884158,-1316.93,0.00041643,30]
[378797019,1755019884167,-400.0,0.00041643,30]
[378797020,1755019884176,-400.0,0.00041643,30]
[378797021,1755019884185,-819.53,0.00041643,30]
[378797022,1755019884194,-400.0,0.00041643,30]
[378797023,1755019884203,-400.0,0.00041643,30]
[378797024,1755019884212,-750.57,0.00041643,30]
[378797025,1755019884221,-408.0,0.00041643,30]
[378797026,1755019884231,-400.0,0.00041643,30]
[378797027,1755019884239,-400.0,0.00041643,30]
[378797028,1755019884249,-400.0,0.00041643,30]
[378797029,1755019884258,-932.64,0.00041643,30]
[378797030,1755019884267,-583.48,0.00041643,30]
[378797031,1755019884276,-560.3,0.00041643,30]
[378797032,1755019884286,-400.0,0.00041643,30]
[378797033,1755019884296,-1056.87,0.00041643,30]
[378797034,1755019884305,-811.45,0.00041643,30]
[378797035,1755019884315,-400.0,0.00041643,30]
[378797036,1755019884325,-400.0,0.00041643,30]
[378797037,1755019884335,-400.0,0.00041643,30]
[378797038,1755019884345,-1437.63,0.00041643,30]
[378797039,1755019884356,-557.18,0.00041643,30]
[378797040,1755019884365,-400.0,0.00041643,30]
[378797041,1755019884374,-400.0,0.00041643,30]
[378797042,1755019884386,-400.0,0.00041643,30]
[378797043,1755019884522,-745.9,0.00041643,30]
[378797044,1755019884532,-435.11,0.00041643,30]
[378797045,1755019884542,-1009.8,0.00041643,30]
[378797046,1755019884551,-400.0,0.00041643,30]
[378797047,1755019884561,-400.0,0.00041643,30]
[378797048,1755019884570,-964.91,0.00041643,30]
[378797049,1755019884580,-400.0,0.00041643,30]
[378797050,1755019884589,-400.0,0.00041643,30]
[378797051,1755019884599,-1167.37,0.00041643,30]
[378797052,1755019884609,-400.0,0.00041643,30]
[378797053,1755019884618,-400.0,0.00041643,30]
[378797054,1755019884628,-986.7,0.00041643,30]
[378797055,1755019884641,-400.0,0.00041643,30]
[378797056,1755019884651,-400.0,0.00041643,30]
[378797057,1755019884660,-400.0,0.00041643,30]
[378797058,1755019884670,-400.0,0.00041643,30]
[378797059,1755019884679,-627.45,0.00041643,30]
[378797060,1755019884689,-400.0,0.00041643,30]
[378797061,1755019884699,-400.0,0.00041643,30]
[378797062,1755019884709,-976.63,0.00041643,30]
[378797063,1755019884718,-656.98,0.00041643,30]
[378797064,1755019884727,-413.35,0.00041643,30]
[378797065,1755019884737,-400.0,0.00041643,30]
[378797066,1755019884746,-400.0,0.00041643,30]
[378797067,1755019884755,-905.85,0.00041643,30]
[378797068,1755019884764,-1446.5,0.00041643,30]
[378797069,1755019884773,-1322.47,0.00041643,30]
[378797070,1755019884782,-400.0,0.00041643,30]
[378797071,1755019884791,-400.0,0.00041643,30]
[378797072,1755019884800,-785.21,0.00041643,30]
[378797073,1755019884809,-400.0,0.00041643,30]
[378797074,1755019884819,-400.0,0.00041643,30]
[378797075,1755019884828,-411.68,0.00041643,30]
[378797076,1755019884837,-400.0,0.00041643,30]
[378797077,1755019884847,-400.0,0.00041643,30]
[378797078,1755019884856,-902.06,0.00041643,30]
[378797079,1755019884865,-580.5,0.00041643,30]
[378797080,1755019884875,-400.0,0.00041643,30]
[378797081,1755019884888,-460.0,0.00041643,30]
[378797082,1755019884897,-400.0,0.00041643,30]
[378797083,1755019884907,-1257.27,0.00041643,30]
[378797084,1755019884916,-400.0,0.00041643,30]
[378797085,1755019884925,-1351.37,0.00041643,30]
[378797086,1755019884934,-400.0,0.00041643,30]
[378797087,1755019884943,-400.0,0.00041643,30]
[378797088,1755019884953,-639.77,0.00041643,30]
[378797089,1755019884962,-400.0,0.00041643,30]
[378797090,1755019884971,-750.15,0.00041643,30]
[378797091,1755019884981,-1237.4,0.00041643,30]
[378797092,1755019884990,-400.0,0.00041643,30]
[378797093,1755019884999,-400.0,0.00041643,30]
[378797094,1755019885008,-539.46,0.00041643,30]
[378797095,1755019885017,-528.31,0.00041643,30]
[378797096,1755019885027,-400.0,0.00041643,30]
[378797097,1755019885036,-400.0,0.00041643,30]
[378797098,1755019885045,-407.93,0.00041643,30]
[378797099,1755019885054,-400.0,0.00041643,30]
[378797100,1755019885063,-400.0,0.00041643,30]
[378797101,1755019885072,-535.41,0.00041643,30]
[378797102,1755019885082,-437.68,0.00041643,30]
[378797103,1755019885091,-1547.54,0.00041643,30]
[378797104,1755019885100,-1298.42,0.00041643,30]
[378797105,1755019885109,-725.45,0.00041643,30]
[378797106,1755019885118,-922.46,0.00041643,30]
[378797107,1755019885127,-589.55,0.00041643,30]
[378797108,1755019885139,-400.0,0.00041643,30]
[378797109,1755019885148,-400.0,0.00041643,30]
[378797110,1755019885158,-400.0,0.00041643,30]
[378797111,1755019885167,-151.0,0.00041643,30]
[378797112,1755019885176,-400.0,0.00041643,30]
[378797113,1755019885186,-400.0,0.00041643,30]
[378797114,1755019885195,-459.61,0.00041643,30]
[378797115,1755019885204,-400.0,0.00041643,30]
[378797116,1755019885213,-400.0,0.00041643,30]
[378797117,1755019885223,-898.35,0.00041643,30]
[378797118,1755019885232,-682.79,0.00041643,30]
[378797119,1755019885241,-400.0,0.00041643,30]
[378797120,1755019885250,-400.0,0.00041643,30]
[378797121,1755019885260,-1000.0,0.00041643,30]
[378797122,1755019885269,-1299.25,0.00041643,30]
[378797123,1755019885279,-400.0,0.00041643,30]
[378797124,1755019885289,-151.0,0.00041643,30]
[378797125,1755019885298,-1172.85,0.00041643,30]
[378797126,1755019885307,-1034.16,0.00041643,30]
[378797127,1755019885327,-400.0,0.00041643,30]
[378797128,1755019885343,-151.0,0.00041643,30]
[378797129,1755019885365,-400.0,0.00041643,30]
[378797130,1755019885385,-783.56,0.00041643,30]
[378797131,1755019885399,-151.0,0.00041643,30]
[378797132,1755019885418,-400.0,0.00041643,30]
[378797133,1755019885437,-400.0,0.00041643,30]
[378797134,1755019885455,-400.0,0.00041643,30]
[378797135,1755019885474,-1408.03,0.00041643,30]
[378797136,1755019885492,-400.0,0.00041643,30]
[378797137,1755019885511,-1341.55,0.00041643,30]
[378797138,1755019885526,-400.0,0.00041643,30]
[378797139,1755019885542,-1085.29,0.00041643,30]
[378797140,1755019885557,-400.0,0.00041643,30]
[378797141,1755019885571,-533.38,0.00041643,30]
[378797142,1755019885588,-400.0,0.00041643,30]
[378797143,1755019885601,-400.0,0.00041643,30]
[378797144,1755019885616,-400.0,0.00041643,30]
[378797145,1755019885633,-151.0,0.00041643,30]
[378797146,1755019885648,-400.0,0.00041643,30]
[378797147,1755019885664,-1094.05,0.00041643,30]
[378797148,1755019885680,-400.0,0.00041643,30]
[378797149,1755019885695,-402.68937823,0.00041643,30]
[378797150,1755019885711,-1199.8,0.00041643,30]
[378797151,1755019885727,-400.0,0.00041643,30]
[378797152,1755019885742,-400.0,0.00041643,30]
[378797153,1755019885756,-400.0,0.00041643,30]
[378797154,1755019885771,-400.0,0.00041643,30]
[378797155,1755019885786,-400.0,0.00041643,30]
[378797156,1755019885801,-1427.83,0.00041643,30]
[378797157,1755019885816,-400.0,0.00041643,30]
[378797158,1755019885833,-400.0,0.00041643,30]
[378797159,1755019885849,-400.0,0.00041643,30]
[378797160,1755019885864,-400.0,0.00041643,30]
[378797161,1755019885884,-821.46,0.00041643,30]
[378797162,1755019885900,-630.0,0.00041643,30]
[378797163,1755019885916,-672.08,0.00041643,30]
[378797164,1755019885932,-400.0,0.00041643,30]
[378797165,1755019885948,-1226.11,0.00041643,30]
[378797166,1755019885963,-400.0,0.00041643,30]
[378797167,1755019885978,-681.07,0.00041643,30]
[378797168,1755019885992,-400.0,0.00041643,30]
[378797169,1755019886007,-400.0,0.00041643,30]
[378797170,1755019886022,-536.84,0.00041643,30]
[378797171,1755019886036,-471.22,0.00041643,30]
[378797172,1755019886051,-400.0,0.00041643,30]
[378797173,1755019886065,-400.0,0.00041643,30]
[378797174,1755019886080,-400.0,0.00041643,30]
[378797175,1755019886096,-400.0,0.00041643,30]
[378797176,1755019886111,-1645.17,0.00041643,30]
[378797177,1755019886125,-1010.45,0.00041643,14]
[378797178,1755019886141,-1215.72,0.00041643,30]
[378797179,1755019886155,-400.0,0.00041643,30]
[378797180,1755019886170,-400.0,0.00041643,30]
[378797181,1755019886185,-400.0,0.00041643,30]
[378797183,1755019886200,-1288.67,0.00041643,30]
[378797184,1755019886215,-400.0,0.00041643,30]
[378797185,1755019886229,-400.0,0.00041643,30]
[378797186,1755019886244,-400.0,0.00041643,30]
[378797187,1755019886259,-688.84,0.00041643,30]
[378797188,1755019886274,-492.41,0.00041643,30]
[378797189,1755019886289,-400.0,0.00041643,30]
[378797190,1755019886303,-400.0,0.00041643,30]
[378797191,1755019886318,-400.0,0.00041643,30]
[378797192,1755019886332,-151.0,0.00041643,30]
[378797193,1755019886348,-1202.36,0.00041643,30]
[378797194,1755019886363,-634.81,0.00041643,30]
[378797195,1755019886378,-400.0,0.00041643,30]
[378797196,1755019886394,-597.82,0.00041643,30]
[378797197,1755019886409,-1518.71,0.00041643,30]
[378797198,1755019886424,-737.74,0.00041643,30]
[378797199,1755019886439,-400.0,0.00041643,30]
[378797200,1755019886454,-771.66,0.00041643,30]
[378797201,1755019886468,-668.35,0.00041643,30]
[378797202,1755019886484,-1277.19,0.00041643,30]
[378797203,1755019886497,-620.97,0.00041643,30]
[378797204,1755019886508,-400.0,0.00041643,30]
[378797205,1755019886519,-400.0,0.00041643,30]
[378797206,1755019886528,-400.0,0.00041643,30]
[378797207,1755019886538,-400.0,0.00041643,30]
[378797208,1755019886547,-787.17,0.00041643,30]
[378797209,1755019886556,-460.0,0.00041643,30]
[378797210,1755019886566,-400.0,0.00041643,30]
[378797211,1755019886576,-400.0,0.00041643,30]
[378797212,1755019886795,-400.0,0.00041643,30]
[378797213,1755019886813,-1265.17,0.00041643,30]
[378797214,1755019886825,-400.0,0.00041643,30]
[378797215,1755019886834,-1312.52,0.00041643,30]
[378797216,1755019886843,-400.0,0.00041643,30]
[378797217,1755019886852,-400.0,0.00041643,30]
[378797218,1755019886861,-400.0,0.00041643,30]
[378797219,1755019886870,-400.0,0.00041643,30]
[378797220,1755019886881,-2226.37,0.00041643,30]
[378797221,1755019886890,-726.28,0.00041643,30]
[378797222,1755019886900,-400.0,0.00041643,30]
[378797223,1755019886910,-400.0,0.00041643,30]
[378797224,1755019886919,-400.0,0.00041643,30]
[378797225,1755019886928,-529.43,0.00041643,30]
[378797226,1755019886938,-400.0,0.00041643,30]
[378797227,1755019886947,-650.77,0.00041643,30]
[378797228,1755019886956,-400.0,0.00041643,30]
[378797229,1755019886965,-400.0,0.00041643,30]
[378797230,1755019886974,-400.0,0.00041643,30]
[378797231,1755019886983,-400.0,0.00041643,30]
[378797232,1755019886993,-900.36,0.00041643,30]
[378797233,1755019887002,-300.0,0.00041643,30]
[378797234,1755019887011,-400.0,0.00041643,30]
[378797235,1755019887021,-400.0,0.00041643,30]
[378797236,1755019887030,-571.27,0.00041643,30]
[378797237,1755019887040,-711.69,0.00041643,30]
[378797238,1755019887049,-400.0,0.00041643,30]
[378797239,1755019887059,-400.0,0.00041643,30]
[378797240,1755019887069,-1557.03,0.00041643,30]
[378797241,1755019887078,-400.0,0.00041643,30]
[378797242,1755019887088,-400.0,0.00041643,30]
[378797243,1755019887097,-400.0,0.00041643,30]
[378797244,1755019887106,-516.09,0.00041643,30]
[378797245,1755019887116,-400.0,0.00041643,30]
[378797246,1755019887125,-422.99,0.00041643,30]
[378797247,1755019887135,-400.0,0.00041643,30]
[378797248,1755019887145,-476.96,0.00041643,30]
[378797249,1755019887155,-400.0,0.00041643,30]
[378797250,1755019887164,-400.0,0.00041643,30]
[378797251,1755019887174,-400.0,0.00041643,30]
[378797252,1755019887183,-750.94,0.00041643,30]
[378797253,1755019887193,-1099.99,0.00041643,30]
[378797254,1755019887203,-520.26,0.00041643,30]
[378797255,1755019887212,-819.89,0.00041643,30]
[378797256,1755019887221,-859.51,0.00041643,30]
[378797257,1755019887231,-1305.1,0.00041643,30]
[378797258,1755019887241,-400.0,0.00041643,30]
[378797259,1755019887250,-451.4,0.00041643,30]
[378797260,1755019887259,-237.60529673,0.00041644,30]
[378797261,1755019887269,-150.0,0.00041654,2]
[378797262,1755019887278,-151.584582,0.00041657,30]
[378797263,1755019887288,-152.672687,0.00041657,30]
[378797264,1755019887297,-151.0,0.00041657,30]
[378797265,1755019887307,-151.0,0.00041657,30]
[378797266,1755019887316,-151.0,0.00041657,30]
[378797267,1755019887326,-500.68978573,0.00041673,10]
[378797268,1755019887335,-150.0,0.00041691,2]
[378797269,1755019887346,-479.71,0.000417,14]
[378797270,1755019887357,-150.0,0.000417,2]
[378797271,1755019887367,-500.0,0.00041722,30]
[378797272,1755019887376,-500.0,0.00041722,30]
[378797273,1755019887389,-167.71955744,0.00041722,2]
[378797274,1755019887398,-150.0,0.00041722,30]
[378797275,1755019887408,-150.0,0.00041722,30]
[378797276,1755019887417,-200.0,0.00041734,15]
[378797277,1755019887428,-150.0,0.00041734,15]
[378797278,1755019887437,-3776.0,0.00041742,3]
[378797279,1755019887446,-150.0,0.00041747,2]
[378797280,1755019887456,-5169.16079486,0.00041786,15]
[378797281,1755019887465,-173.4664,0.0004179,10]
[378797282,1755019887474,-150.0,0.00041848,2]
[378797283,1755019887484,-150.0,0.00041866,2]
[378797284,1755019887493,-264.92,0.00041889,14]
[378797285,1755019887503,-500.0,0.00041896,60]
[378797286,1755019887512,-203.61863769,0.00041907,7]
[378797287,1755019887521,-162.17731847,0.00041907,2]
[378797288,1755019887531,-300.0,0.00041916,30]
[378797289,1755019887540,-500.0,0.00041916,30]
[378797290,1755019887549,-409.20797435,0.00041916,30]
[378797291,1755019887558,-476.25046704,0.00041916,30]
[378797292,1755019887567,-400.0,0.00041917,30]
[378797293,1755019887576,-400.0,0.00041917,30]
[378797294,1755019887586,-400.0,0.00041917,30]
[378797295,1755019887595,-400.0,0.00041917,30]
[378797296,1755019887604,-400.0,0.00041917,30]
[378797297,1755019887613,-400.0,0.00041917,30]
[378797298,1755019887623,-400.0,0.00041917,30]
[378797299,1755019887633,-400.0,0.00041917,30]
[378797300,1755019887643,-400.0,0.00041917,30]
[378797301,1755019887651,-400.0,0.00041917,30]
[378797302,1755019887662,-400.0,0.00041917,30]
[378797303,1755019887674,-400.0,0.00041917,30]
[378797304,1755019887683,-400.0,0.00041917,30]
[378797305,1755019887693,-422.73915752,0.00041917,30]
[378797306,1755019887702,-400.0,0.00041917,30]
[378797307,1755019887711,-262.53483674,0.00041917,30]
[378797308,1755019887720,-400.0,0.00041917,30]
[378797309,1755019887729,-400.0,0.00041917,30]
[378797310,1755019887738,-400.0,0.00041917,30]
[378797311,1755019887747,-400.0,0.00041917,30]
[378797312,1755019887756,-400.0,0.00041917,30]
[378797313,1755019887765,-400.0,0.00041917,30]
[378797314,1755019887774,-400.0,0.00041917,30]
[378797315,1755019887783,-461.51215628,0.00041917,30]
[378797316,1755019887792,-400.0,0.00041917,30]
[378797317,1755019887801,-400.0,0.00041917,30]
[378797318,1755019887811,-201.51,0.00041917,30]
[378797319,1755019887820,-433.5,0.00041917,30]
[378797320,1755019887829,-400.0,0.00041917,30]
[378797321,1755019887839,-400.0,0.00041917,30]
[378797322,1755019887849,-400.0,0.00041917,30]
[378797323,1755019887859,-460.0,0.00041917,30]
[378797324,1755019887869,-205.29360678,0.00041917,30]
[378797325,1755019887881,-400.0,0.00041917,30]
[378797326,1755019887891,-400.0,0.00041917,30]
[378797327,1755019887900,-268.11794044,0.00041917,30]
[378797328,1755019887910,-400.0,0.00041917,30]
[378797329,1755019887920,-400.0,0.00041917,30]
[378797330,1755019887930,-400.0,0.00041917,30]
[378797331,1755019887939,-400.0,0.00041917,30]
[378797332,1755019887947,-400.0,0.00041917,30]
[378797333,1755019887957,-400.0,0.00041917,30]
[378797334,1755019887966,-400.0,0.00041917,30]
[378797335,1755019887975,-400.0,0.00041917,30]
[378797336,1755019887984,-400.0,0.00041917,30]
[378797337,1755019887993,-400.0,0.00041917,30]
[378797338,1755019888003,-400.0,0.00041917,30]
[378797339,1755019888012,-400.0,0.00041917,30]
[378797340,1755019888021,-400.0,0.00041917,30]
[378797341,1755019888031,-400.0,0.00041917,30]
[378797342,1755019888040,-388.24,0.00041917,30]
[378797343,1755019888049,-400.0,0.00041917,30]
[378797344,1755019888059,-400.0,0.00041917,30]
[378797345,1755019888069,-400.0,0.00041917,30]
[378797346,1755019888078,-400.0,0.00041917,30]
[378797347,1755019888087,-400.0,0.00041917,30]
[378797348,1755019888097,-400.0,0.00041917,30]
[378797349,1755019888106,-400.0,0.00041917,30]
[378797350,1755019888115,-400.0,0.00041917,30]
[378797351,1755019888124,-400.0,0.00041917,30]
[378797352,1755019888136,-430.36,0.00041917,30]
[378797353,1755019888146,-400.0,0.00041917,30]
[378797354,1755019888156,-401.34,0.00041917,30]
[378797355,1755019888165,-527.82,0.00041917,30]
[378797356,1755019888174,-400.0,0.00041917,30]
[378797357,1755019888184,-400.0,0.00041917,30]
[378797358,1755019888193,-257.0887587,0.00041917,30]
[378797359,1755019888202,-400.0,0.00041917,30]
[378797360,1755019888212,-400.0,0.00041917,30]
[378797361,1755019888221,-429.33658438,0.00041917,30]
[378797362,1755019888230,-400.0,0.00041917,30]
[378797363,1755019888240,-400.0,0.00041917,30]
[378797364,1755019888249,-400.0,0.00041917,30]
[378797365,1755019888258,-400.0,0.00041917,30]
[378797366,1755019888268,-400.0,0.00041917,30]
[378797367,1755019888277,-400.0,0.00041917,30]
[378797368,1755019888287,-400.0,0.00041917,30]
[378797369,1755019888297,-400.58,0.00041917,30]
[378797370,1755019888306,-400.0,0.00041917,30]
[378797371,1755019888316,-400.0,0.00041917,30]
[378797372,1755019888325,-400.0,0.00041917,30]
[378797373,1755019888335,-400.0,0.00041917,30]
[378797374,1755019888345,-400.0,0.00041917,30]
[378797375,1755019888358,-423.34918297,0.00041917,30]
[378797376,1755019888367,-400.0,0.00041917,30]
[378797377,1755019888377,-400.0,0.00041917,30]
[378797378,1755019888390,-400.0,0.00041917,30]
[378797379,1755019888400,-400.0,0.00041917,30]
[378797380,1755019888409,-400.0,0.00041917,30]
[378797381,1755019888418,-400.0,0.00041917,30]
[378797382,1755019888428,-400.0,0.00041917,30]
[378797383,1755019888438,-400.0,0.00041917,30]
[378797384,1755019888448,-400.0,0.00041917,30]
[378797385,1755019888457,-400.0,0.00041917,30]
[378797386,1755019888466,-400.0,0.00041917,30]
[378797387,1755019888476,-400.0,0.00041917,30]
[378797388,1755019888485,-373.91818934,0.00041917,30]
[378797389,1755019888495,-400.0,0.00041917,30]
[378797390,1755019888504,-400.0,0.00041917,30]
[378797391,1755019888514,-400.0,0.00041917,30]
[378797392,1755019888523,-400.0,0.00041917,30]
[378797393,1755019888532,-400.0,0.00041917,30]
[378797394,1755019888542,-400.0,0.00041917,30]
[378797395,1755019888552,-433.58,0.00041917,30]
[378797396,1755019888561,-400.0,0.00041917,30]
[378797397,1755019888570,-400.0,0.00041917,30]
[378797398,1755019888580,-400.0,0.00041917,30]
[378797399,1755019888589,-400.0,0.00041917,30]
[378797400,1755019888598,-400.0,0.00041917,30]
[378797401,1755019888607,-400.0,0.00041917,30]
[378797402,1755019888616,-400.0,0.00041917,30]
[378797403,1755019888626,-400.0,0.00041917,30]
[378797404,1755019888637,-493.84623676,0.00041917,30]
[378797405,1755019888646,-400.0,0.00041917,30]
[378797406,1755019888656,-400.0,0.00041917,30]
[378797407,1755019888665,-400.0,0.00041917,30]
[378797408,1755019888675,-400.0,0.00041917,30]
[378797409,1755019888684,-400.0,0.00041917,30]
[378797410,1755019888693,-526.58753327,0.00041917,30]
[378797411,1755019888703,-400.0,0.00041917,30]
[378797412,1755019888712,-502.96575409,0.00041917,30]
[378797413,1755019888721,-428.56186043,0.00041917,30]
[378797414,1755019888731,-400.0,0.00041917,30]
[378797415,1755019888741,-400.0,0.00041917,30]
[378797416,1755019888750,-400.0,0.00041917,30]
[378797417,1755019888759,-400.0,0.00041917,30]
[378797418,1755019888768,-400.0,0.00041917,30]
[378797419,1755019888777,-400.0,0.00041917,30]
[378797420,1755019888787,-400.0,0.00041917,30]
[378797421,1755019888796,-400.0,0.00041917,30]
[378797422,1755019888805,-400.0,0.00041917,30]
[378797423,1755019888814,-400.0,0.00041917,30]
[378797424,1755019888823,-400.0,0.00041917,30]
[378797425,1755019888833,-400.0,0.00041917,30]
[378797426,1755019888843,-400.0,0.00041917,30]
[378797427,1755019888852,-400.0,0.00041917,30]
[378797428,1755019888861,-400.0,0.00041917,30]
[378797429,1755019888871,-400.0,0.00041917,30]
[378797430,1755019888881,-400.0,0.00041917,30]
[378797431,1755019888891,-400.0,0.00041917,30]
[378797432,1755019888900,-400.0,0.00041917,30]
[378797433,1755019888909,-400.0,0.00041917,30]
[378797434,1755019888919,-400.0,0.00041917,30]
[378797435,1755019888929,-400.0,0.00041917,30]
[378797436,1755019888939,-400.0,0.00041917,30]
[378797437,1755019888947,-491.86671854,0.00041917,30]
[378797438,1755019888956,-400.0,0.00041917,30]
[378797439,1755019888968,-400.0,0.00041917,30]
[378797440,1755019888977,-400.0,0.00041917,30]
[378797441,1755019888987,-400.0,0.00041917,30]
[378797442,1755019888996,-400.0,0.00041917,30]
[378797443,1755019889006,-400.0,0.00041917,30]
[378797444,1755019889015,-331.27009156,0.00041917,30]
[378797445,1755019889023,-400.0,0.00041917,30]
[378797446,1755019889032,-400.0,0.00041917,30]
[378797447,1755019889041,-400.0,0.00041917,30]
[378797448,1755019889051,-400.0,0.00041917,30]
[378797449,1755019889059,-400.0,0.00041917,30]
[378797450,1755019889068,-400.0,0.00041917,30]
[378797451,1755019889077,-400.0,0.00041917,30]
[378797452,1755019889086,-230.82139781,0.00041917,30]
[378797453,1755019889095,-400.0,0.00041917,30]
[378797454,1755019889104,-322.32403881,0.00041917,30]
[378797455,1755019889113,-420.59,0.00041917,30]
[378797456,1755019889125,-400.0,0.00041917,30]
[378797457,1755019889138,-429.67680502,0.00041917,30]
[378797458,1755019889147,-400.0,0.00041917,30]
[378797459,1755019889156,-658.66,0.00041917,30]
[378797460,1755019889166,-400.0,0.00041917,30]
[378797461,1755019889175,-400.0,0.00041917,30]
[378797462,1755019889184,-400.0,0.00041917,30]
[378797463,1755019889194,-400.0,0.00041917,30]
[378797464,1755019889203,-400.0,0.00041917,30]
[378797465,1755019889211,-400.0,0.00041917,30]
[378797466,1755019889221,-414.33,0.00041917,30]
[378797467,1755019889230,-400.0,0.00041917,30]
[378797468,1755019889239,-400.0,0.00041917,30]
[378797469,1755019889248,-653.53,0.00041917,30]
[378797470,1755019889257,-400.0,0.00041917,30]
[378797471,1755019889266,-400.25,0.00041917,30]
[378797472,1755019889275,-400.0,0.00041917,30]
[378797473,1755019889284,-555.5,0.00041917,30]
[378797474,1755019889294,-400.0,0.00041917,30]
[378797475,1755019889303,-400.0,0.00041917,30]
[378797476,1755019889312,-400.0,0.00041917,30]
[378797477,1755019889321,-400.0,0.00041917,30]
[378797478,1755019889331,-623.38,0.00041917,30]
[378797479,1755019889340,-400.0,0.00041917,30]
[378797480,1755019889351,-404.07,0.00041917,30]
[378797481,1755019889361,-400.0,0.00041917,30]
[378797482,1755019889370,-400.0,0.00041917,30]
[378797483,1755019889379,-400.0,0.00041917,30]
[378797484,1755019889390,-400.0,0.00041917,30]
[378797485,1755019889399,-455.13,0.00041917,30]
[378797486,1755019889409,-400.0,0.00041917,30]
[378797487,1755019889418,-400.0,0.00041917,30]
[378797488,1755019889429,-636.44,0.00041917,30]
[378797489,1755019889439,-400.0,0.00041917,30]
[378797490,1755019889448,-679.29,0.00041917,30]
[378797491,1755019889457,-403.57044257,0.00041917,30]
[378797492,1755019889467,-400.0,0.00041917,30]
[378797493,1755019889476,-669.37,0.00041917,30]
[378797494,1755019889485,-496.17,0.00041917,30]